Cogmind - Beta 13 @@@ ROGUE MODE // 2024.07.12 @ 18:25:13 Player: APerTAS Result: Self-destructed Performance ------------- Evolutions (1) 500 Regions Visited (3) 600 Robots Destroyed (11) 55 Value Destroyed (207) 207 Prototype IDs (0) 0 Alien Tech Used (0) 0 Bonus (0) 0 TOTAL SCORE: 1362 Bonus ------- None Cogmind --------- Core Integrity 22/400 Matter 21/300 Energy 100/100 System Corruption 0% Temperature Cool (0) Movement Core (200) Ox3 Location -9/Materials Parts ------- > --- POWER (1) -------- (None) > --- PROPULSION (3) --- (None) > --- UTILITY (3) ------ Medium Storage Unit > --- WEAPON (2) ------- (None) > --- INVENTORY (10) --- Ion Engine Light Treads Wheel Heat Sink Improved Terrain Scanner Light Assault Rifle Datajack Mining Claw Peak State ------------ > --- POWER ------------ Light Deuterium Engine > --- PROPULSION ------- Wheel Wheel Compact Wheel > --- UTILITY ---------- Medium Storage Unit Signal Interpreter Improved Terrain Scanner > --- WEAPON ----------- Light Cannon Mining Claw > --- INVENTORY -------- Ion Engine Light Treads Wheel Heat Sink Assault Rifle Light Assault Rifle Datajack [Rating: 13] Favorites ----------- Power Ion Engine Engine Ion Engine Propulsion Light Treads Treads Light Treads Wheel Compact Wheel Utility Small Storage Unit Device Improved Terrain Scanner Storage Small Storage Unit Processor Signal Interpreter Protection Light Armor Plating Weapon Light Cannon Ballistic Gun Assault Rifle Ballistic Cannon Light Cannon Slashing Weapon Mining Claw Special Melee Weapon Datajack Build | -11 -10 -10 -9 ------- Run | Yrd Mat Min Mat Slots Evolved 2 | . . . 2 Power . | . . . . Propulsion 1 | . . . 1 Utility 1 | . . . 1 Weapon . | . . . . Parts Attached 34 | 6 7 17 4 Power 3 | 1 . 2 . Engine 3 | 1 . 2 . Core . | . . . . Reactor . | . . . . Propulsion 8 | 2 . 5 1 Treads 2 | 2 . . . Leg . | . . . . Wheel 6 | . . 5 1 Hover . | . . . . Flight . | . . . . Utility 7 | 1 1 3 2 Device 3 | . 1 1 1 Storage 2 | 1 . 1 . Processor 1 | . . 1 . Hackware . | . . . . Protection 1 | . . . 1 Artifact . | . . . . Weapon 16 | 2 6 7 1 Energy Gun . | . . . . Energy Cannon . | . . . . Ballistic Gun 4 | 2 . 1 1 Ballistic Cannon 4 | . 3 1 . Launcher . | . . . . Special Weapon . | . . . . Impact Weapon . | . . . . Slashing Weapon 3 | . . 3 . Piercing Weapon . | . . . . Special Melee Weapon 5 | . 3 2 . Unidentified Prototypes . | . . . . Parts Lost 8 | . . 1 7 Power 1 | . . . 1 Propulsion 3 | . . . 3 Utility 2 | . . 1 1 Weapon 2 | . . . 2 Highest Loss Streak 5 | . . 1 5 To Critical Strikes . | . . . . Average Slot Usage (%) 90 | . 91 99 57 Engine 12 | . 14 14 3 Treads 13 | . 28 7 . Wheel 11 | . . 20 9 Device 8 | . 6 11 3 Storage 13 | . 14 14 11 Processor 2 | . . 1 9 Ballistic Gun 7 | . 10 6 7 Ballistic Cannon 11 | . 11 13 3 Slashing Weapon 2 | . . 4 2 Special Melee Weapon 4 | . 6 4 . Naked Turns . | . . . . Heaviest Build 21 | 13 16 21 21 Greatest Support 40 | 40 40 40 36 Greatest Overweight (x) 1 | . . . 1 Average Overweight (x) . | . . . . Largest Inventory Capacity 10 | 8 8 10 10 Average Capacity 8 | 7 8 9 10 Most Carried 9 | 5 8 9 8 Average Carried 7 | 3 6 8 7 Final Capacity 10 | 8 8 10 10 Final Carried 9 | 3 8 9 8 Class Distribution -------------------- 83% | Mutant 16% | Scavenger-Mutant Dominant Class ---------------- Mutant | -10/Materials Mutant | -10/Mines Mutant | -9/Materials Resources | -11 -10 -10 -9 ----------- Run | Yrd Mat Min Mat Matter Collected 732 | 260 13 455 4 Remotely . | . . . . Salvage Created 275 | . 6 134 135 Parts 27 | . 4 8 15 Haulers Intercepted . | . . . . Recyclers Shooed . | . . . . Parts Field Recycled . | . . . . Retrieved Matter . | . . . . Parts Self-Destructed . | . . . . Prevented . | . . . . Kills | -11 -10 -10 -9 ------- Run | Yrd Mat Min Mat Combat Hostiles Destroyed 17 | . . 11 6 Melee 1 | . . 1 . Guns 10 | . . 5 5 Cannons 6 | . . 5 1 Classes Destroyed 6 | . 1 3 2 Tunneler 1 | . . 1 . Watcher 1 | . 1 . . Swarmer 6 | . . 3 3 Grunt 1 | . . . 1 Sentry 2 | . . . 2 Assembled 8 | . . 8 . Best Kill Streak 4 | . 1 3 4 Combat Bots Only 4 | . . 3 4 Max Kills in Single Turn 2 | . 1 2 1 Gunslinging . | . . . . Exploded . | . . . . Melee 1 | . . 1 . Uniques/NPCs Destroyed . | . . . . Combat | -11 -10 -10 -9 -------- Run | Yrd Mat Min Mat Hostile Shots Fired 110 | . . 41 69 Missed 29 | . . 11 18 Damage Taken 1385 | . . 554 831 Core 469 | . . 91 378 Absorbed by Shields . | . . . . Core Remaining (%) 81 | 100 . 63 . Volleys Fired 119 | . 4 37 78 Largest 2 | . 2 2 2 Hottest 55 | . 55 55 55 Shots Fired 153 | . 8 58 87 Gun 99 | . 5 24 70 Cannon 54 | . 3 34 17 Launcher . | . . . . Special . | . . . . Kinetic 153 | . 8 58 87 Thermal . | . . . . Explosive . | . . . . Electromagnetic . | . . . . Robot Hit Streak 16 | . 4 3 16 Robot Miss Streak 3 | . 1 3 3 Penetration Max . | . . . . Secondary Targets . | . . . . Shots Hit Robots 74 | . 15 30 29 Core Hits 29 | . 2 17 10 Critical Kills . | . . . . Critical Parts Destroyed . | . . . . Critical Strikes 1 | . . 1 . Blast 1 | . . 1 . Melee Attacks 42 | . 9 33 . Impact . | . . . . Slashing 27 | . . 27 . Piercing . | . . . . Sneak Attacks 13 | . 9 4 . Combat Hostiles . | . . . . Follow-up Attacks . | . . . . Damage Inflicted 906 | . 78 393 435 Guns 433 | . 29 153 251 Cannons 445 | . 49 212 184 Explosions . | . . . . Melee 28 | . . 28 . Ramming . | . . . . Kinetic 878 | . 78 365 435 Thermal . | . . . . Explosive . | . . . . Electromagnetic . | . . . . Impact . | . . . . Slashing 28 | . . 28 . Piercing . | . . . . Highest Corruption . | . . . . Average Corruption . | . . . . Corruption Purged . | . . . . Corruption Blocked . | . . . . Overload Shots . | . . . . Overflow Damage . | . . . . Projectiles . | . . . . Explosions . | . . . . Melee . | . . . . Knockbacks 9 | . . 6 3 Impact . | . . . . Kinetic 9 | . . 6 3 Secondary . | . . . . Self-Inflicted Damage . | . . . . Shots . | . . . . Rammed . | . . . . Targets Rammed . | . . . . Kicked . | . . . . Crushed . | . . . . Highest Temperature 56 | . . 22 56 Average Temperature 20 | . . 12 25 Received Heat Transfer 165 | . . 60 105 Siege Activations . | . . . . Robots Corrupted . | . . . . Combat Hostiles . | . . . . Parts Fried . | . . . . Impact Corruptions . | . . . . Robots Melted . | . . . . Combat Hostiles . | . . . . Parts Melted . | . . . . Heat Transferred . | . . . . Parts Sabotaged . | . . . . Parts Stolen . | . . . . Parts Stripped . | . . . . Power Chain Reactions . | . . . . Alert | -11 -10 -10 -9 ------- Run | Yrd Mat Min Mat Peak Influence 147 | . 73 84 147 Initial 4 | . . 4 . Average 26 | . 30 7 90 Maximum Alert Level . | . . . . Low Security (%) 100 | 100 100 100 100 Level 1 . | . . . . Level 2 . | . . . . Level 3 . | . . . . Level 4 . | . . . . Level 5 . | . . . . High Security . | . . . . Max Security . | . . . . Squads Dispatched 2 | . 1 . 1 Investigation . | . . . . Extermination . | . . . . Reinforcement 2 | . 1 . 1 Assault . | . . . . Garrison . | . . . . Intercept . | . . . . Searches Triggered . | . . . . Construction Impeded 1 | . . . 1 Haulers Reinforced . | . . . . Active Scanning Responses . | . . . . Cargo Convoy Interrupts . | . . . . Stealth | -11 -10 -10 -9 --------- Run | Yrd Mat Min Mat Distress Signals 2 | . . . 2 Communications Jammed . | . . . . Distress Signals . | . . . . Times Spotted 26 | . 5 13 8 Peak Tracking Total 6 | . 2 3 6 Tactical Retreats 2 | . . 2 . Traps | -11 -10 -10 -9 ------- Run | Yrd Mat Min Mat Traps Triggered . | . . . . Indirectly . | . . . . Trap Hack Attempts . | . . . . Triggered . | . . . . Disarmed . | . . . . Reprogrammed . | . . . . Reused . | . . . . Traps Extracted . | . . . . Installed . | . . . . Triggered . | . . . . Machines | -11 -10 -10 -9 ---------- Run | Yrd Mat Min Mat Machines Disabled . | . . . . Max in Single Turn . | . . . . Machines Repaired . | . . . . Machines Dismantled . | . . . . Machines Sabotaged . | . . . . Overloaded Fab Kills . | . . . . Hacking | -11 -10 -10 -9 --------- Run | Yrd Mat Min Mat Machines Accessed 3 | . 3 . . Terminals 3 | . 3 . . Fabricators . | . . . . Repair Stations . | . . . . Recycling Units . | . . . . Scanalyzers . | . . . . Garrison Access . | . . . . Total Hacks 10 | . 10 . . Successful 4 | . 4 . . Failed 6 | . 6 . . Catastrophic 1 | . 1 . . Database Lockouts . | . . . . Manual 3 | . 3 . . Terminals 10 | . 10 . . Fabricators . | . . . . Repair Stations . | . . . . Recycling Units . | . . . . Scanalyzers . | . . . . Garrison Access . | . . . . Terminal Hacks 4 | . 4 . . Branch Access Points 1 | . 1 . . Emergency Access Points 1 | . 1 . . Reinforcement Status 1 | . 1 . . Recall Reinforcements 1 | . 1 . . Fabricator Hacks . | . . . . Repair Station Hacks . | . . . . Recycling Unit Hacks . | . . . . Scanalyzer . | . . . . Garrison Access Hacks . | . . . . Unauthorized Hacks . | . . . . Terminals . | . . . . Fabricators . | . . . . Repair Stations . | . . . . Recycling Units . | . . . . Scanalyzers . | . . . . Garrison Access . | . . . . Data Cores Recovered . | . . . . Used . | . . . . Hacking Detections 2 | . 2 . . Full Trace Events . | . . . . Feedback Events . | . . . . Feedback Blocked . | . . . . Robot Schematics Acquired . | . . . . Robots Built . | . . . . Authchips . | . . . . Time . | . . . . Total Robot Build Rating . | . . . . Part Schematics Acquired . | . . . . Parts Built . | . . . . Authchips . | . . . . Time . | . . . . Total Part Build Rating . | . . . . Parts Repaired . | . . . . Time . | . . . . Parts Recycled . | . . . . Recycled Matter . | . . . . Retrieved Matter . | . . . . Retrieved Components . | . . . . Parts Scanalyzed . | . . . . Part Schematics Acquired . | . . . . Parts Damaged . | . . . . Bothacking | -11 -10 -10 -9 ------------ Run | Yrd Mat Min Mat Used RIF Installer . | . . . . Robots Hacked 4 | . 3 1 . Non-combat 3 | . 3 . . Combat 1 | . . 1 . Robot Hacks Applied 8 | . 7 1 . parse_system 4 | . 3 1 . no_distress 3 | . 3 . . check_alert 1 | . 1 . . Relay Couplers Released . | . . . . Fabnet Peak Effective % . | . . . . Robots Rewired . | . . . . Allies Hacked . | . . . . Hacks Repelled . | . . . . Allies | -11 -10 -10 -9 -------- Run | Yrd Mat Min Mat Total Allies . | . . . . Largest Group . | . . . . Highest-Rated Group . | . . . . Highest-Rated Ally . | . . . . Total Orders . | . . . . Ally Attacks . | . . . . Total Damage . | . . . . Kills . | . . . . Allies Corrupted . | . . . . Allies Melted . | . . . . Intel | -11 -10 -10 -9 ------- Run | Yrd Mat Min Mat Robot Analysis Total . | . . . . Derelict Logs Recovered 1 | . . 1 . Drone Launches . | . . . . Drone Recoveries . | . . . . Exploration | -11 -10 -10 -9 ------------- Run | Yrd Mat Min Mat Turns Passed 1681 | 61 556 819 245 Spaces Moved 954 | 42 322 538 52 Core 21 | 21 . . . Treads 427 | 21 322 84 . Legs . | . . . . Wheels 506 | . . 454 52 Hover . | . . . . Flight . | . . . . Fastest Speed 50 | 50 160 90 86 Average Speed 122 | 105 160 104 87 Slowest Speed 160 | 160 160 160 115 Overloaded Moves . | . . . . Propulsion Burnouts . | . . . . Robots Hopped . | . . . . Cave-ins Triggered . | . . . . Exploration Rate (%) 34 | 4 42 84 7 Regions Visited 3 Branch Regions 1 Pre-discovered Areas 2 | . . 2 . Known Exits Taken 2 | . 1 1 . Unknown Exits Taken 1 | 1 . . . Scrap Searched 2 | . . 2 . Spaces Dug 9 | . . 9 . Terrain Destroyed 9 | . . 9 . Melee 9 | . . 9 . Projectile . | . . . . AOE . | . . . . Terrain Rammed . | . . . . Walls Destroyed . | . . . . Machines Disabled . | . . . . Actions | -11 -10 -10 -9 --------- Run | Yrd Mat Min Mat Total 1246 | 60 348 675 163 Wait 58 | . 1 29 28 Move 951 | 41 321 537 52 Hop . | . . . . Pick Up 30 | 11 6 12 1 Fast Attach . | . . . . Attach 10 | 6 1 1 2 Detach . | . . . . Swap 24 | . 6 16 2 Drop 12 | 2 . 10 . Fire 119 | . 4 37 78 Melee 42 | . 9 33 . Ram . | . . . . Kick . | . . . . Crush . | . . . . Escape Stasis . | . . . . Rewire . | . . . . Trap . | . . . . Miscellaneous . | . . . . Route ------- -11/Scrapyard -10/Materials -10/Mines (discovered 2 exits: *Mat x2) -9/Materials History --------- Turn | Location | Event 31 | -11/Scrapyard | Discovered new exit (range 15) 62 | -11/Scrapyard | Entered Materials 251 | -10/Materials | Discovered new exit (range 9) 315 | -10/Materials | Build established: Mutant 591 | -10/Materials | Identified exit to Mines 618 | -10/Materials | Entered Mines 619 | -10/Mines | Assembled infested the area 890 | -10/Mines | Received a Rocket Launcher from a helpful Derelict 1310 | -10/Mines | Learned location of Storage (-7) 1333 | -10/Mines | Discovered new exit (range 5) 1340 | -10/Mines | Identified exit to Materials 1394 | -10/Mines | Discovered exit to Materials (range 13) 1437 | -10/Mines | Entered Materials 1437 | -9/Materials | Evolved 2 slots: Propulsion x1, Utility x1 1560 | -9/Materials | Lost 5 parts (1p3n1w) 1659 | -9/Materials | Core integrity fell below 50% 1677 | -9/Materials | Core integrity fell below 20% 1682 | -9/Materials | Self-destructed Last Messages --------------- S-10 Pest knocked back. S-10 Pest destroyed. Wheel destroyed. Y-45 Defender destroyed. Acquired 4 matter. Acquired Lgt. Armor Plating. Critical hit (Burn: +37). Com. Wheel destroyed. Lgt. Deuterium Engine destroyed. Critical hit (Burn: +37). Lgt. Cannon destroyed. Y-45 Defender destroyed. ALERT: Construction progress impeded, dispatching reinforcements to local area. U-05 Engineer builds a Door. G-34 Mercenary destroyed. Lgt. Armor Plating destroyed. Assault Rifle destroyed. Signal Interpreter severed. R-06 Scavenger collects Heat Sink. Map ----- +----------------------------------------------------+ | ????????????????????# #?#######+##????????? | | ????????????????????# ??# #????????? | | ????????????????????# ??# """""#????????? | | ????????????????????# ??# """""#????????? | | ???????????????#????# ??# """""#????????? | | ????????????????????# #?# """""#????????? | | ???????????????#????# #?# """""#????????? | | ????????????????????# #?# """""#????????? | | ????????????????????# #?# """""#????#???? | | ????????????????????# #?# #????????? | | ????????????????? ??# #######+####????????? | | ?????????????????? ?# #????????? | | ????????????????????+ #????????? | | ????????????????????# #????????? | | ????????????????????# ############????????? | | ????????????????????# #????????#??????????? | | ???????? ???? ??????# #?????????????#?????? | | ????????????????????# #?#?????????????????? | | ????????????????#???# #????????????#??????? | | ???????????????????## ##########??????????? | | ??????????#?????????# # =%[ #??????????? | | ????????????????????# # !*% #??????#???? | | ????????????????????# r #%% %! #??????????? | | ???????????????#????# % #! % [=#???#??????? | | ????????????????????# %l%% [[ #??????????? | | ????????????????????# [#@ *%[[[%#??????????? | | ????????????????????# # = [[ #?#????????? | | ????????????????#???# # #??????????? | | ??????????????????? # #??????#???? | | ??????????? ?????? ##########???#??????? | | ????????????????? #??????????????#????? | | ????????????????##### #??????#????????????? | | ????????????????????# ??????????? ????????? | | ????????????????????# ???? ???????????????? | | ????????????????????# ????????????????????? | | ???????????????##??? ????????????????????? | | ???????????????????? ????????????????????? | | ???????????????????? ????????????????????? | | ????????????????????? ????????????????????? | | ????????????????????????????????????????????? | | ????????????????????????????????????????????? | | ????????????????????????????????????????????? | | ????????????????????????????????????????????? | | ????????????????????????????????????????????? | | ????????????????????????????????????????????? | | ????????????????????????????????????????????? | | ????????????????????????????????????????????? | | ????????????????????????????????????????????? | | ????????????????????????????????????????????? | | ????????????????????????????????????????????? | +----------------------------------------------------+ Best States ------------- Heat Dissipation 28 Energy Generation 14 Energy Capacity 250 Matter Stores 300 Matter Capacity 300 Sight Range 16 Robot Scan Range 14 Terrain Scan Range 16 Terrain Scan Density 10 Armor Coverage 150 Evasion (%) 50 Recoil Reduction 2 Item Schematics ----------------- None Robot Schematics ------------------ None Fabricated ------------ Nothing Alien Tech Used ----------------- None Achievements -------------- I Survived The Infestation Challenges ------------ None Game ------ Seed CargoSegregatorAmplifier Manual? 0 Play Time 00:23:12 Cumulative 7.4 hours Start 2024.07.12 @ 18:03:46 End 2024.07.12 @ 18:25:13 Sessions 1 Manual Loads 0 Difficulty Rogue Special Mode None Game No. 19 Rogue 19 Adventurer 0 Explorer 0 Win Type - Total 0 Types 0/0/0/0/0/0/0/0/0 Lore% 15 Gallery% 10 Achievement% 12 Wizard Run 0 Options --------- Layout 1 ASCII 0 Keyboard 0 Movement Arrows Keybinds 0 Fullscreen 1 Font 28/Dina Map View 50x43 Zoom Use 0% Tactical HUD 0 Map Filters NONE Filters NONE Steam X RUN: 38193035-3ed4-43a1-8991-299dc2b41475